Cogmind - Beta 16 @@@ ROGUE MODE // 2025.12.04 @ 18:50:13 Player: GLC Result: Destroyed by H-55 Commando with Gauss Rifle Performance ------------- Evolutions (2) 1000 Regions Visited (3) 600 Robots Destroyed (106) 530 Value Destroyed (1675) 1675 Prototype IDs (2) 40 Alien Tech Used (0) 0 Bonus (0) 0 TOTAL SCORE: 3845 Bonus ------- None Cogmind --------- Core Integrity 0/550 Matter 19/300 Energy 100/100 System Corruption 0% Temperature Cool (0) Movement Core (700) Ox13 Location -8/Materials Parts ------- > --- POWER (1) -------- (None) > --- PROPULSION (4) --- (None) > --- UTILITY (4) ------ High-capacity Storage Unit Transport Network Coupler > --- WEAPON (2) ------- (None) > --- INVENTORY (20) --- Heavy Ion Engine Heavy Ion Engine Wheel Heat Sink Sensor Array Sensor Array Sensor Array Signal Interpreter Improved Signal Interpreter Transport Network Coupler Light Armor Plating Light Armor Plating Hacking Suite Light Assault Rifle Gauss Rifle Rocket Launcher Datajack Datajack Datajack Axe Peak State ------------ > --- POWER ------------ Heavy Ion Engine > --- PROPULSION ------- Wheel Wheel Wheel Armored Wheel > --- UTILITY ---------- High-capacity Storage Unit Transport Network Coupler Hacking Suite > --- WEAPON ----------- Gauss Rifle Gauss Rifle > --- INVENTORY -------- Heavy Ion Engine Heavy Ion Engine Wheel Wheel Compact Wheel Heat Sink Sensor Array Sensor Array Sensor Array Signal Interpreter Transport Network Coupler Light Armor Plating Light Armor Plating Hacking Suite Light Assault Rifle Gauss Rifle Rocket Launcher Datajack Datajack Datajack [Rating: 24] Favorites ----------- Power Ion Engine Engine Ion Engine Propulsion Wheel Wheel Wheel Utility High-capacity Storage Unit Device Sensor Array Storage High-capacity Storage Unit Processor Improved Targeting Computer Hackware Hacking Suite Weapon Improved Assault Rifle Energy Gun Beam Rifle Ballistic Gun Improved Assault Rifle Launcher Grenade Launcher Special Melee Weapon Datajack Build | -11 -10 -9 -8 ------- Run | Yrd Mat Mat Mat Slots Evolved 4 | . . 2 2 Power . | . . . . Propulsion 2 | . . 2 . Utility 2 | . . . 2 Weapon . | . . . . Parts Attached 60 | 9 18 24 9 Power 4 | 1 1 2 . Engine 4 | 1 1 2 . Core . | . . . . Reactor . | . . . . Propulsion 26 | 3 7 13 3 Treads . | . . . . Leg . | . . . . Wheel 26 | 3 7 13 3 Hover . | . . . . Flight . | . . . . Utility 10 | 2 4 2 2 Device 3 | 1 2 . . Storage 2 | 1 1 . . Processor 3 | . 1 1 1 Hackware 2 | . . 1 1 Protection . | . . . . Artifact . | . . . . Weapon 20 | 3 6 7 4 Energy Gun 4 | 3 1 . . Energy Cannon . | . . . . Ballistic Gun 11 | . 3 4 4 Ballistic Cannon . | . . . . Launcher 2 | . 1 1 . Special Weapon . | . . . . Impact Weapon . | . . . . Slashing Weapon . | . . . . Piercing Weapon . | . . . . Special Melee Weapon 3 | . 1 2 . Unidentified Prototypes 2 | . 1 1 . Parts Lost 28 | . 4 12 12 Power 1 | . . . 1 Propulsion 16 | . 2 7 7 Utility 5 | . 1 2 2 Weapon 6 | . 1 3 2 Highest Loss Streak 9 | . 2 7 9 To Critical Strikes 1 | . . 1 . Average Backups 16 | 3 16 18 18 Power 1 | . 1 2 2 Propulsion 6 | 1 11 3 2 Utility 5 | . 1 8 9 Weapon 1 | . 1 1 1 Tool/Special . | . . . . Unused Backups 25 | 1 10 2 12 Power 6 | . 2 2 2 Propulsion 9 | 1 8 . . Utility 10 | . . . 10 Weapon . | . . . . Tool/Special . | . . . . Average Slot Usage (%) 94 | . 97 97 67 Engine 11 | . 14 11 5 Wheel 32 | . 26 42 22 Device 7 | . 10 5 . Storage 12 | . 14 11 9 Processor 3 | . 1 4 9 Energy Gun 5 | . 8 3 . Ballistic Gun 15 | . 15 16 12 Launcher 2 | . 4 1 2 Peak Build Rating 24 | 7 13 18 24 Average Rating 12 | 4 11 14 14 On Entrance 7 | . 7 10 14 Avg Prop Armor Cover (%) . | . . . . Naked Turns . | . . . . Heaviest Build 56 | 14 52 55 56 Greatest Support 42 | 20 20 40 42 Greatest Overweight (x) 5 | . 5 5 4 Average Overweight (x) 1 | . 2 1 1 Largest Inventory Capacity 20 | 8 20 20 20 Average Capacity 19 | 5 19 20 20 Most Carried 20 | 6 20 20 20 Average Carried 17 | 3 16 18 18 Final Capacity 20 | 8 20 20 20 Final Carried 20 | 6 20 19 20 Class Distribution -------------------- 59% | Mutant 40% | Scavenger-Mutant Dominant Class ---------------- Mutant | -10/Materials Scavenger-Mutant | -9/Materials Mutant | -8/Materials Resources | -11 -10 -9 -8 ----------- Run | Yrd Mat Mat Mat Matter Collected 1944 | 299 717 830 98 Remotely . | . . . . Salvage Created 3073 | 223 1317 1116 417 Parts 249 | 16 114 88 31 Haulers Intercepted 7 | . 2 4 1 Recyclers Shooed 1 | . 1 . . Parts Field Recycled . | . . . . Retrieved Matter . | . . . . Parts Self-Destructed . | . . . . Prevented . | . . . . Parts Restored . | . . . . Kills | -11 -10 -9 -8 ------- Run | Yrd Mat Mat Mat Combat Hostiles Destroyed 44 | . 15 18 11 Guns 28 | . 13 14 1 AOE 16 | . 2 4 10 Classes Destroyed 10 | 3 6 1 . Worker 17 | 2 13 2 . Builder 15 | . 7 4 4 Tunneler 8 | 5 3 . . Hauler 7 | . 2 4 1 Recycler 6 | 1 3 2 . Operator 5 | . 3 2 . Watcher 4 | . 1 3 . Swarmer 17 | . 6 8 3 Grunt 22 | . 9 6 7 Sentry 5 | . . 4 1 Best Kill Streak 8 | 6 8 4 8 Combat Bots Only 5 | . 5 4 4 Max Kills in Single Turn 3 | 1 2 2 3 Gunslinging 1 | . 1 1 . Exploded 2 | . 1 2 2 Melee . | . . . . Uniques/NPCs Destroyed . | . . . . Combat | -11 -10 -9 -8 -------- Run | Yrd Mat Mat Mat Hostile Shots Fired 391 | . 77 190 124 Missed 108 | . 18 64 26 Hits 283 | . 59 126 98 Projectile 283 | . 59 126 98 Critical Strikes 8 | . 3 3 2 Damage Taken 3493 | . 721 1343 1429 Core 991 | . 145 296 550 Absorbed by Shields . | . . . . Core Remaining (%) 56 | 100 42 26 . Volleys Fired 246 | 18 91 108 29 Largest 2 | 2 2 2 2 Hottest 90 | 90 86 79 61 Shots Fired 488 | 35 182 215 56 Gun 458 | 35 176 207 40 Cannon . | . . . . Launcher 30 | . 6 8 16 Special . | . . . . Kinetic 362 | . 149 173 40 Thermal 96 | 35 27 34 . Explosive 30 | . 6 8 16 Electromagnetic . | . . . . Robot Hit Streak 28 | 5 28 14 5 Robot Miss Streak 3 | 3 2 3 3 Penetration Max . | . . . . Secondary Targets 6 | . 2 4 . Max Gunslinging Chain 1 | . 1 1 . Shots Hit Robots 320 | 19 119 149 33 Core Hits 148 | 9 57 55 27 Critical Kills . | . . . . Critical Parts Destroyed 3 | . 1 1 1 Critical Strikes 3 | . 1 1 1 Destroy 3 | . 1 1 1 Melee Attacks 10 | . . 10 . Impact . | . . . . Slashing . | . . . . Piercing . | . . . . Sneak Attacks 4 | . . 4 . Combat Hostiles . | . . . . Follow-up Attacks . | . . . . Damage Inflicted 5432 | 233 1965 1805 1429 Guns 3986 | 233 1783 1664 306 Cannons . | . . . . Explosions 1441 | . 182 141 1118 Melee . | . . . . Ramming 5 | . . . 5 Kinetic 3245 | . 1538 1401 306 Thermal 741 | 233 245 263 . Explosive 1441 | . 182 141 1118 Electromagnetic . | . . . . Impact . | . . . . Slashing . | . . . . Piercing . | . . . . Highest Corruption 1 | . 1 . . Average Corruption 1 | . 1 . . Corruption Purged . | . . . . Corruption Blocked . | . . . . Effects 3 | . 3 . . Matter Fused 2 | . 2 . . Alerts 1 | . 1 . . Overload Shots . | . . . . Overflow Damage 27 | . . . 27 Projectiles . | . . . . Explosions 27 | . . . 27 Melee . | . . . . Knockbacks . | . . . . Impact . | . . . . Kinetic . | . . . . Secondary . | . . . . Self-Inflicted Damage 58 | . . 40 18 Shots 3 | . . 2 1 Rammed 3 | . . . 3 Targets Rammed 3 | . . . 3 Kicked . | . . . . Crushed . | . . . . Highest Temperature 180 | 180 86 136 39 Average Temperature 34 | 61 29 31 12 Received Heat Transfer 1116 | . 336 267 513 Siege Activations . | . . . . Martial Activations . | . . . . Shielding Activations . | . . . . Robots Disrupted . | . . . . Combat Hostiles . | . . . . Robots Corrupted . | . . . . Combat Hostiles . | . . . . Parts Fried . | . . . . Impact Corruptions . | . . . . Robots Melted . | . . . . Combat Hostiles . | . . . . Parts Melted 2 | 1 . 1 . Heat Transferred 1915 | 620 629 666 . Parts Sabotaged . | . . . . Parts Stolen . | . . . . Parts Stripped . | . . . . Power Chain Reactions . | . . . . Alert | -11 -10 -9 -8 ------- Run | Yrd Mat Mat Mat Maximum Alert Level . | . . . . Low Security (%) 100 | 100 100 100 100 Level 1 . | . . . . Level 2 . | . . . . Level 3 . | . . . . Level 4 . | . . . . Level 5 . | . . . . High Security . | . . . . Max Security . | . . . . Peak Influence 172 | 10 150 169 172 Initial 37 | . 3 6 37 Average 60 | 3 54 67 88 Influence Increases 1749 | 40 593 627 489 Destroy 0b10 Robot/C 880 | . 300 360 220 Destroy 0b10 Robot/NC 310 | 40 160 85 25 Destroy Leader 222 | . 76 94 52 Successful Hack 8 | . . . 8 Disable Machine 90 | . 15 15 60 Destroy Structure 164 | . 42 58 64 Lose Combat Pursuer 75 | . . 15 60 Influence Decreases 1662 | 35 582 553 492 Entered New Map 65 | . 2 10 53 Time Decay 1158 | 35 521 433 169 Lost Part 260 | . 30 110 120 Purge Threat 179 | . 29 . 150 Squads Dispatched 11 | . 3 2 6 Investigation 2 | . 1 . 1 Extermination . | . . . . Reinforcement 6 | . 2 2 2 Assault . | . . . . Garrison 3 | . . . 3 Intercept . | . . . . Searches Triggered . | . . . . Construction Impeded 1 | . . . 1 Haulers Reinforced . | . . . . Active Scanning Responses . | . . . . Cargo Convoy Interrupts . | . . . . Stealth | -11 -10 -9 -8 --------- Run | Yrd Mat Mat Mat Distress Signals 3 | . 1 1 1 Communications Jammed . | . . . . Distress Signals . | . . . . Times Spotted 77 | . 21 33 23 Peak Tracking Total 7 | . 5 7 7 Tactical Retreats 5 | . . 1 4 Traps | -11 -10 -9 -8 ------- Run | Yrd Mat Mat Mat Traps Triggered 6 | . 3 3 . Indirectly . | . . . . Trap Hack Attempts . | . . . . Triggered . | . . . . Disarmed . | . . . . Reprogrammed . | . . . . Reused . | . . . . Traps Extracted . | . . . . Installed . | . . . . Triggered . | . . . . Machines | -11 -10 -9 -8 ---------- Run | Yrd Mat Mat Mat Machines Disabled 6 | . 1 1 4 Max in Single Turn 1 | . 1 1 1 Machines Repaired . | . . . . Machines Dismantled . | . . . . Machines Sabotaged . | . . . . Overloaded Fab Kills . | . . . . Hacking | -11 -10 -9 -8 --------- Run | Yrd Mat Mat Mat Machines Accessed 11 | . 5 2 4 Terminals 9 | . 5 1 3 Fabricators . | . . . . Repair Stations . | . . . . Recycling Units 1 | . . 1 . Scanalyzers 1 | . . . 1 Garrison Access . | . . . . Total Hacks 22 | . 9 3 10 Successful 13 | . 3 1 9 Failed 9 | . 6 2 1 Catastrophic 4 | . 3 1 . Database Lockouts . | . . . . Manual 6 | . 4 2 . Terminals 17 | . 9 2 6 Fabricators . | . . . . Repair Stations . | . . . . Recycling Units 1 | . . 1 . Scanalyzers 4 | . . . 4 Garrison Access . | . . . . Terminal Hacks 8 | . 3 . 5 Alert Level 4 | . 1 . 3 Unreport Threat 2 | . 1 . 1 Locate Traps 1 | . 1 . . Recall Reinforcements 1 | . . . 1 Fabricator Hacks . | . . . . Repair Station Hacks . | . . . . Recycling Unit Hacks 1 | . . 1 . Report Inventory 1 | . . 1 . Scanalyzer 4 | . . . 4 Retrieve Study 4 | . . . 4 Garrison Access Hacks . | . . . . Unauthorized Hacks . | . . . . Terminals . | . . . . Fabricators . | . . . . Repair Stations . | . . . . Recycling Units . | . . . . Scanalyzers . | . . . . Garrison Access . | . . . . Data Cores Recovered 1 | . 1 . . Used . | . . . . Hacking Detections 9 | . 5 2 2 Full Trace Events 2 | . 1 . 1 Feedback Events . | . . . . Feedback Blocked . | . . . . Robot Schematics Acquired . | . . . . Robots Built . | . . . . Authchips . | . . . . Time . | . . . . Total Robot Build Rating . | . . . . Part Schematics Acquired . | . . . . Parts Built . | . . . . Authchips . | . . . . Time . | . . . . Total Part Build Rating . | . . . . Part Studies Acquired 4 | . . . 4 Parts Repaired . | . . . . Time . | . . . . Parts Recycled . | . . . . Recycled Matter . | . . . . Retrieved Matter . | . . . . Retrieved Components . | . . . . Parts Scanalyzed . | . . . . Part Schematics Acquired . | . . . . Parts Damaged . | . . . . Bothacking | -11 -10 -9 -8 ------------ Run | Yrd Mat Mat Mat Used RIF Installer . | . . . . Robots Hacked 2 | . . 2 . Non-combat 2 | . . 2 . Combat . | . . . . Robot Hacks Applied 2 | . . 2 . no_distress 2 | . . 2 . Relay Couplers Released . | . . . . Fabnet Peak Effective % . | . . . . Robots Rewired . | . . . . Allies Hacked . | . . . . Hacks Repelled . | . . . . Allies | -11 -10 -9 -8 -------- Run | Yrd Mat Mat Mat Total Allies . | . . . . Largest Group . | . . . . Highest-Rated Group . | . . . . Highest-Rated Ally . | . . . . Total Orders . | . . . . Ally Attacks . | . . . . Total Damage . | . . . . Kills . | . . . . Allies Corrupted . | . . . . Allies Melted . | . . . . Intel | -11 -10 -9 -8 ------- Run | Yrd Mat Mat Mat Active Infowar (turns) 2278 | 53 1278 617 330 Sensors 1481 | . 864 617 . Seismic 467 | 53 414 . . T.N.C. 330 | . . . 330 Robot Analysis Total . | . . . . Derelict Logs Recovered . | . . . . Drone Launches . | . . . . Drone Recoveries . | . . . . Exploration | -11 -10 -9 -8 ------------- Run | Yrd Mat Mat Mat Turns Passed 3438 | 155 1681 1252 350 Spaces Moved 2344 | 99 1157 869 219 Core 1 | 1 . . . Treads . | . . . . Legs . | . . . . Wheels 2343 | 98 1157 869 219 Hover . | . . . . Flight . | . . . . Fastest Speed 50 | 50 80 95 87 Average Speed 103 | 79 110 95 105 Slowest Speed 155 | 80 155 155 130 Overloaded Moves . | . . . . Propulsion Burnouts . | . . . . Robots Hopped . | . . . . Potential Cave-ins . | . . . . Cave-ins Triggered . | . . . . Exploration Rate (%) 41 | 4 89 47 26 Regions Visited 3 Branch Regions . Pre-discovered Areas . | . . . . Known Exits Taken 1 | . 1 . . Unknown Exits Taken 2 | 1 . 1 . Scrap Searched . | . . . . Spaces Dug . | . . . . Terrain Destroyed 193 | . 47 62 84 Melee . | . . . . Projectile . | . . . . AOE 193 | . 47 62 84 Terrain Rammed . | . . . . Walls Destroyed . | . . . . Machines Disabled . | . . . . Actions | -11 -10 -9 -8 --------- Run | Yrd Mat Mat Mat Total 2882 | 138 1380 1084 280 Wait 64 | . 45 19 . Move 2341 | 98 1156 868 219 Hop . | . . . . Pick Up 79 | 11 39 23 6 Fast Attach 8 | 2 2 4 . Attach 31 | 5 4 16 6 Detach 1 | . . . 1 Swap 60 | 3 16 27 14 Drop 39 | 1 27 9 2 Fire 246 | 18 91 108 29 Melee 10 | . . 10 . Ram 3 | . . . 3 Kick . | . . . . Crush . | . . . . Escape Stasis . | . . . . Rewire . | . . . . Trap . | . . . . Miscellaneous . | . . . . Route ------- -11/Scrapyard -10/Materials (discovered 5 exits: *Mat x2 / *Min x2 / [*Sub]) -9/Materials (discovered 2 exits: *Mat / [*Min]) -8/Materials History --------- Turn | Location | Event 37 | -11/Scrapyard | Discovered new exit (range 13) 156 | -11/Scrapyard | Entered Materials 307 | -10/Materials | Build established: Mutant 429 | -10/Materials | Discovered new exit (range 15) 480 | -10/Materials | Discovered new exit (range 15) 555 | -10/Materials | Discovered new exit (range 8) 1015 | -10/Materials | Discovered new exit (range 7) 1253 | -10/Materials | Core integrity fell below 50% 1275 | -10/Materials | Discovered new exit (range 6) 1646 | -10/Materials | Identified exit to Materials 1743 | -10/Materials | Identified exit to Mines 1837 | -10/Materials | Entered another Materials area 1837 | -9/Materials | Evolved 2 slots: Propulsion x2 2132 | -9/Materials | Build established: Scavenger-Mutant 2373 | -9/Materials | Lost 7 parts (4n3w) 2383 | -9/Materials | Core integrity fell below 50% 2589 | -9/Materials | Discovered new exit (range 12) 2929 | -9/Materials | Discovered new exit (range 10) 3008 | -9/Materials | Lost 3 parts (3n) 3089 | -9/Materials | Entered another Materials area 3089 | -8/Materials | Evolved 2 slots: Utility x2 3198 | -8/Materials | Garrison activated, responded to threat 3304 | -8/Materials | Garrison activated, responded to threat 3362 | -8/Materials | Core integrity fell below 50% 3395 | -8/Materials | Core integrity fell below 20% 3396 | -8/Materials | Lost 9 parts (1p5n1u2w) 3439 | -8/Materials | Destroyed by H-55 Commando with Gauss Rifle Last Messages --------------- Critical hit (Burn: +37). Wheel+ destroyed. Penetrated by Slug. Slug penetrates Wall. W-25 Informer sends out distress signal. Connecting with Terminal... >>Recall(Reinforcements) Establishing remote squad link... No tasked reinforcement squads found. >>Alert(Check) Current Alert Level: Low Security Slug penetrates Wall. Acquired Axe. Slug penetrates Wall. Slammed into G-47 Trooper. Com. Wheel destroyed. Slammed into G-47 Trooper. Slug penetrates Wall. Terminal disabled. Slug penetrates Wall. Map ----- +----------------------------------------------------+ | ?????????????????????????????????????????????????? | | ?????????????????????????????????????????????????? | | ?????????????????????????????????????????????????? | | ?????????????????????????????????????????????????? | | ?????????????????????????????????????????????????# | | ?????????????????????????????????????????????????# | | ?????????????????????#########???????????????????# | | ????????????########## #???????????????????# | | ????????????? = ##################??# | | ???????????? #??# | | ???????????? ^ T #??# | | ??????????? #### | | ????????????? ############## # | | ?????????????????##### #????????????# # | | ?????????????????????####+#####???????????# # ! | | ?????????????????????# #???????????# # | | ?????????????????????# #???????????# # | | ?????????????????????# #???????????# # | | ?????????????????????# #???????????# # | | ?????????????????????# #???????????# # | | ?????????????????????# #???????????# #### | | ?????????????????????# #???????????# #??# | | ?????????????????????# #????##+##### #### | | ?????????????????????# #????# ! =[* | | ?????????????????????######+######## [%[ | | ?????????????????????# @g Y Y Y [[[ | | ?????????????????????# # ### = | | ?????????????????????# " # #?# | | ?????????????????????# "T + #?# """ %"" " | | ?????????????????????# "" #########?# """a """ " | | ?????????????????????# #?????????# """ """ " | | ?????????????????????######?????????# | | ????????????????????????????????????# | | ????????????????????????????????????# | | ????????????????????????????????????# ######## # | | ????????????????????????????????????# ???????# # | | ????????????????????????????????????#????????# | | ?????????????????????????????????????????????+ + | | ?????????????????????????????????????????????# # | | ?????????????????????????????????????????????# # | | ?????????????????????????????????????????????# # | | ?????????????????????????????????????????????# # | | ?????????????????????????????????????????????# # | | ?????????????????????????????????????????????# # | | ?????????????????????????????????????????????/ # | | ?????????????????????????????????????????????# | | ?????????????????????????????????????????????# | | ?????????????????????????????????????????????? "? | | ?????????????????????????????????????????????????" | | ?????????????????????????????????????????????????" | +----------------------------------------------------+ Best States ------------- Heat Dissipation 31 Energy Generation 14 Energy Capacity 280 Matter Stores 300 Matter Capacity 300 Sight Range 16 Robot Scan Range 14 Terrain Scan Density 10 Evasion (%) 44 Targeting Accuracy 6 Offensive Hacking 10 Authchip Count 1 Item Schematics ----------------- None Robot Schematics ------------------ None Fabricated ------------ Nothing Repaired ---------- Nothing Studied --------- Rocket Launcher | -8/Materials | Hacked Arm. Wheel | -8/Materials | Hacked Wheel | -8/Materials | Hacked Datajack | -8/Materials | Hacked Alien Tech Used ----------------- None Achievements -------------- None Challenges ------------ None Game ------ Seed WeldingThermicScythe Manual? 0 Play Time 00:48:52 Cumulative 14.7 hours Start 2025.12.04 @ 17:55:39 End 2025.12.04 @ 18:50:13 Sessions 2 Manual Loads 0 Difficulty Rogue Special Mode None Game No. 30 Rogue 30 Adventurer 0 Explorer 0 Win Type - Total 0 Types 0/0/0/0/0/0/0/0/0/0 Lore% 12 Gallery% 13 Achievement% 14 Wizard Run 0 Options --------- Layout 1 ASCII 0 Keyboard 0 Movement Mouse Keybinds 0 Fullscreen 1 Font 24/Smallcaps Map View 50x35 Zoom Use 0% Tactical HUD 0 Map Filters NONE Filters NONE Steam 1 RUN: 886fa2ab-fb87-48cd-b0a7-81363ba6cc45